bitfinex-derivatives/quotes_ETHF0:USTF0_20260207
["timestamp","ask_amount","ask_price","bid_price","bid_amount"]
[1770481355638,2.89413152,2054.7,2053.1,2.89759337]
[1770481355840,2.89413152,2055.0,2053.3,2.89759337]
[1770481356041,5.1394685,2054.9,2053.3,2.89759337]
[1770481356243,2.89413152,2055.0,2053.3,2.89759337]
[1770481356244,2.89413152,2055.0,2053.4,2.89759337]
[1770481356539,8.06547211,2055.6,2053.4,2.89759337]
[1770481356540,2.89413152,2055.1,2053.4,2.89759337]
[1770481356733,2.89788898,2055.1,2053.4,2.89759337]
[1770481356938,8.25482153,2055.1,2053.4,2.89759337]
[1770481357435,8.25482153,2055.1,2053.3,2.89759337]
[1770481357943,0.00375746,2055.1,2053.5,2.89759337]
[1770481358137,0.00375746,2055.1,2053.7,2.89759337]
[1770481358442,0.00375746,2055.1,2053.6,2.89759337]
[1770481358742,5.37471417,2055.0,2053.3,2.89759337]
[1770481358941,2.89413152,2055.0,2053.2,2.89759337]
[1770481359238,8.24418773,2055.0,2053.2,2.89759337]
[1770481360444,2.89413152,2054.9,2053.1,2.89759337]
[1770481360638,2.89413152,2054.8,2053.0,2.89759337]
[1770481360846,2.89413152,2054.7,2052.9,2.89759337]
[1770481361047,5.26234164,2054.8,2052.6,2.89759337]
[1770481361048,2.89413152,2054.4,2052.6,2.89759337]
[1770481361442,8.29259073,2054.3,2052.5,2.90339661]
[1770481361745,5.39845921,2054.5,2053.3,2.89759337]
[1770481362045,2.89413152,2054.5,2052.7,2.89759337]
[1770481362548,8.51360251,2054.4,2052.6,2.89759337]
[1770481362743,2.89413152,2054.7,2052.9,2.89759337]
[1770481362947,2.89413152,2054.7,2052.8,2.89759337]
[1770481363144,2.89413152,2054.7,2052.9,2.89759337]
[1770481363341,2.89413152,2054.8,2053.0,2.89759337]
[1770481363644,8.40891701,2055.0,2053.2,2.89759337]
[1770481363841,2.89413152,2054.6,2052.8,2.89759337]
[1770481364144,8.11698778,2054.5,2052.7,2.89759337]
[1770481364540,2.89413152,2054.2,2052.5,0.00580324]
[1770481364741,2.89413152,2054.1,2052.5,0.00580324]
[1770481364944,2.89413152,2054.0,2052.5,0.00580324]
[1770481365244,2.89413152,2054.1,2053.0,25.09396519]
[1770481365447,2.89413152,2054.2,2052.5,0.00580324]
[1770481365651,8.32906378,2053.9,2052.5,0.00580324]
[1770481365954,7.76813152,2053.8,2052.5,0.00580324]
[1770481366247,2.89413152,2053.7,2052.5,0.00580324]
[1770481366448,2.89413152,2053.7,2051.9,2.89759337]
[1770481366649,10.30893226,2053.8,2051.8,2.89759337]
[1770481366650,2.89413152,2053.6,2051.8,2.89759337]
[1770481366840,7.99091262,2053.6,2051.8,2.89759337]
[1770481367241,2.89413152,2053.4,2051.7,18.03910776]
[1770481367446,2.89413152,2053.2,2051.7,18.04398149]
[1770481367950,5.0967811,2053.1,2051.7,18.04398149]
[1770481368151,2.89413152,2053.3,2051.7,18.04398149]
[1770481368548,8.39298736,2053.3,2051.7,18.04398149]
[1770481368746,2.8986341,2053.4,2051.7,18.04398149]
[1770481368948,2.89413152,2053.3,2051.7,18.04398149]
[1770481369148,5.38075747,2053.2,2051.7,18.04398149]
[1770481369550,2.89413152,2053.3,2051.7,18.04398149]
[1770481369747,5.38075747,2053.1,2051.7,18.04398149]
[1770481370154,2.89418562,2053.3,2051.7,18.04398149]
[1770481370653,5.36459486,2053.2,2051.7,18.04398149]
[1770481370854,2.89418562,2053.3,2051.7,18.04398149]
[1770481371048,5.45466624,2053.2,2051.7,18.04398149]
[1770481371254,2.89418562,2053.1,2051.7,18.04398149]
[1770481371650,5.45466624,2053.0,2051.7,18.04398149]
[1770481371850,2.8986882,2053.4,2051.7,18.04398149]
[1770481372249,5.0976627,2053.2,2051.7,18.04398149]
[1770481372451,5.0976627,2053.3,2051.7,18.04398149]
[1770481372751,0.00450258,2053.4,2051.7,20.9400402]
[1770481372950,0.00450258,2053.4,2051.7,18.04398149]
[1770481373153,5.57453314,2053.3,2051.7,20.9400402]
[1770481373457,5.57453314,2053.3,2051.7,18.04398149]
[1770481373656,5.57453314,2053.3,2051.7,20.9400402]
[1770481374355,0.00450258,2053.4,2051.7,20.9400402]
[1770481374757,5.16031233,2053.3,2051.7,20.9400402]
[1770481375151,5.16031233,2053.3,2051.7,18.04398149]
[1770481376355,5.16031233,2053.3,2051.7,20.9400402]
[1770481376854,0.00450258,2053.4,2051.8,2.89605871]
[1770481377052,5.11721525,2053.3,2051.7,20.9400402]
[1770481377252,5.11721525,2053.3,2051.7,18.04398149]
[1770481377652,12.88540087,2053.3,2051.7,18.04398149]
[1770481377857,2.89418562,2052.7,2051.7,0.00487373]
[1770481378059,2.89418562,2052.4,2050.6,2.89605871]
[1770481378363,4.874,2052.1,2050.1,2.89605871]
[1770481378550,2.89418562,2051.6,2049.6,1.12315]
[1770481378754,7.76818562,2052.7,2050.6,2.98088007]
[1770481379061,5.46582554,2052.0,2050.6,0.00357433]
[1770481379258,5.46582554,2052.2,2050.6,0.00357433]
[1770481379456,2.89418562,2052.3,2050.6,0.00357433]
[1770481379653,5.46582554,2052.1,2050.6,0.00357433]
[1770481380055,5.09985449,2052.4,2050.6,0.00357433]
[1770481380253,2.90036604,2052.7,2050.6,0.00357433]
[1770481380455,2.90036604,2052.7,2051.8,25.09396519]
[1770481380653,4.874,2052.4,2050.6,0.00357433]
[1770481380956,2.89418562,2052.1,2050.6,0.00357433]
[1770481381154,7.76818562,2051.8,2050.6,0.00357433]
[1770481381360,43.27780699,2051.9,2050.6,0.00357433]
[1770481381361,2.89418562,2051.9,2050.6,0.00357433]
[1770481381558,0.05410319,2051.7,2050.6,0.00357433]
[1770481381758,4.874,2051.7,2050.6,0.00357433]
[1770481382153,4.874,2051.5,2050.6,0.00357433]
[1770481382359,2.89418562,2052.2,2050.6,0.00357433]
[1770481382560,2.89418562,2052.4,2050.6,0.00357433]
[1770481382759,5.33137161,2052.2,2050.6,0.00357433]
[1770481382961,5.41669356,2052.3,2050.6,0.00357433]
[1770481383157,5.41669356,2052.4,2050.6,0.00357433]
[1770481383363,2.89418562,2052.5,2050.6,0.00357433]
[1770481383561,13.18487918,2052.4,2050.6,0.00357433]
[1770481383866,7.76818562,2051.9,2050.6,0.00357433]
[1770481384258,7.76818562,2051.6,2050.6,0.00357433]
[1770481384573,4.874,2051.4,2050.6,0.00357433]
[1770481384763,7.76818562,2051.3,2048.7,0.37688205]
[1770481384956,4.874,2051.0,2048.4,2.87900055]
[1770481385267,2.89418562,2051.1,2048.4,2.87900055]
[1770481385268,5.20476852,2050.9,2048.5,0.08489865]
[1770481385468,5.20476852,2050.9,2048.6,2.87900055]
[1770481385667,0.00367081,2050.9,2048.7,2.87900055]
[1770481385967,0.69743659,2050.8,2048.7,8.239263]
[1770481386159,0.69743659,2050.8,2048.6,3.12896463]
[1770481386357,0.69743659,2050.8,2048.6,0.24996408]
[1770481386556,5.57143659,2050.8,2048.6,0.00569408]
[1770481387262,0.69743659,2050.8,2048.6,0.00569408]
[1770481387565,0.00367081,2050.9,2048.6,0.00569408]
[1770481387757,5.30133544,2050.8,2048.6,0.00569408]
[1770481387961,5.30133544,2050.8,2048.7,5.16637371]
[1770481388268,5.30133544,2050.8,2048.6,0.00569408]
[1770481388460,2.89418562,2052.0,2049.7,1.1231]
[1770481388661,0.00367081,2051.9,2049.7,2.87900055]
[1770481388864,0.00367081,2051.9,2049.6,4.35337977]
[1770481388865,5.58862616,2051.8,2049.6,0.24416]
[1770481389066,0.00367081,2051.8,2049.3,2.87900055]
[1770481389268,0.00367081,2051.8,2049.4,2.87900055]
[1770481389461,5.36599648,2051.8,2049.4,2.87900055]
[1770481389657,5.36599648,2051.8,2049.4,8.70068714]
[1770481389861,5.36599648,2051.8,2049.4,3.12318055]
[1770481390063,5.36599648,2051.8,2049.4,0.24418]
[1770481390258,0.00367081,2051.7,2049.4,0.24418]
[1770481390462,0.00367081,2051.7,2048.9,2.87900055]
[1770481390658,0.00367081,2051.7,2049.2,2.87900055]
[1770481390659,5.41510556,2051.6,2049.2,2.87900055]
[1770481390965,0.00367081,2051.7,2049.3,5.7756997]
[1770481391163,0.00367081,2051.7,2049.3,3.12319055]
[1770481391364,5.48700926,2051.6,2049.4,8.20871518]
[1770481391564,5.48700926,2051.6,2049.4,2.87900055]
[1770481391872,0.00367081,2051.5,2049.0,2.87900055]
[1770481392078,0.00367081,2051.5,2049.2,2.87900055]
[1770481392272,5.11990294,2051.4,2049.2,8.38304369]
[1770481392570,5.11990294,2051.4,2049.2,2.87900055]
[1770481392763,0.00367081,2051.3,2049.2,2.87900055]
[1770481393073,0.00367081,2051.3,2049.4,2.87900055]
[1770481393271,0.00367081,2051.3,2049.5,2.87900055]
[1770481393466,0.00367081,2051.3,2049.5,8.07487973]
[1770481393773,0.00367081,2051.3,2049.6,2.87900055]
[1770481394272,0.00456937,2051.8,2049.8,2.87900055]
[1770481394467,0.00367081,2051.7,2049.9,2.87900055]
[1770481394662,0.00367081,2051.7,2050.0,2.87900055]
[1770481394966,0.00367081,2051.7,2051.3,25.09396519]
[1770481395171,0.00456937,2051.8,2051.3,25.09396519]
[1770481395172,0.00456937,2051.8,2051.3,25.09883709]
[1770481395470,0.00456937,2051.8,2051.3,0.0048719]
[1770481395734,2.22031406,2052.2,2051.3,0.0048719]
[1770481395864,2.89418562,2053.0,2051.3,0.0048719]
[1770481396065,2.89418562,2053.1,2051.3,0.0048719]
[1770481396271,5.27321151,2052.8,2051.3,0.0048719]
[1770481396473,5.27321151,2053.0,2051.3,0.0048719]
[1770481396669,0.00444026,2052.8,2051.3,0.0048719]
[1770481397676,0.00444026,2052.8,2051.3,2.88387245]
[1770481399471,0.00444026,2052.8,2051.3,0.0048719]
[1770481400578,5.42895105,2052.7,2051.3,0.0048719]
[1770481401474,0.00444026,2052.8,2051.3,0.0048719]
[1770481401872,5.35315358,2052.7,2051.3,0.0048719]
[1770481402274,0.00444026,2052.8,2051.3,0.0048719]
[1770481404578,0.00444026,2052.8,2051.3,2.88387245]
[1770481404967,0.00444026,2052.8,2051.5,2.87900055]
[1770481405173,2.89418562,2053.7,2051.5,2.87900055]
[1770481405374,2.89418562,2053.9,2051.6,7.23238032]
[1770481405569,2.89418562,2053.9,2051.7,2.87900055]
[1770481405773,5.55380036,2053.7,2051.7,2.87900055]
[1770481405974,5.55380036,2053.7,2051.7,8.34592261]
[1770481406174,0.00626959,2053.7,2051.8,2.87900055]
[1770481406378,0.00626959,2053.7,2052.0,2.87900055]
[1770481406574,0.00626959,2053.7,2052.2,2.87900055]
[1770481406774,0.00626959,2053.7,2052.3,2.87900055]
[1770481406976,2.89418562,2054.9,2052.6,2.87900055]
[1770481407175,43.28780699,2055.0,2052.6,2.87900055]
[1770481407176,2.90418562,2055.0,2052.6,2.87900055]
[1770481407377,0.01,2055.0,2052.7,8.35265756]
[1770481407583,0.01,2055.0,2052.8,2.87900055]
[1770481407874,5.22349698,2054.9,2052.8,2.88466123]
[1770481408075,5.22349698,2054.9,2052.8,0.00566068]
[1770481408279,0.01544183,2055.0,2052.8,0.00566068]
[1770481408676,0.01544183,2055.0,2052.9,5.23656158]
[1770481409076,0.01544183,2055.0,2052.9,3.12276055]
[1770481409282,0.01544183,2055.0,2052.9,8.77074679]
[1770481409479,0.01544183,2055.0,2053.1,0.24374]
[1770481409778,0.01544183,2055.0,2053.1,3.12274055]
[1770481409981,0.01544183,2055.0,2053.2,8.52698679]
[1770481410282,0.01544183,2055.0,2054.7,25.09396519]
[1770481410480,2.89418562,2056.3,2054.7,0.00500961]
[1770481410675,2.1806551,2056.4,2054.7,0.00500961]
[1770481410977,5.21170067,2056.2,2054.7,0.00500961]
[1770481411179,5.33363577,2056.3,2054.7,0.00500961]
[1770481411382,5.33363577,2056.3,2053.4,5.80627785]
[1770481411383,0.00353993,2056.3,2053.4,2.87900055]
[1770481411571,8.47473132,2056.3,2053.3,0.36063526]
[1770481411772,2.89418562,2056.2,2053.1,0.24374]
[1770481412077,5.21084479,2056.1,2053.1,0.24374]
[1770481412273,5.21084479,2056.1,2053.2,5.28876778]
[1770481412474,5.21084479,2056.1,2053.2,5.29341366]
[1770481412775,5.21084479,2056.2,2053.2,5.29341366]
[1770481412977,2.89418562,2056.2,2053.2,0.00464588]
[1770481413177,7.9869521,2056.2,2053.2,0.00464588]
[1770481413484,2.89418562,2056.0,2053.2,0.00464588]
[1770481413686,2.89418562,2055.9,2053.2,0.00464588]
[1770481413881,9.96676648,2055.9,2053.2,0.00464588]
[1770481414083,7.9869521,2055.9,2053.2,0.00464588]
[1770481414278,2.89418562,2055.8,2053.2,0.00464588]
[1770481414478,5.09276648,2055.9,2053.2,0.00464588]
[1770481414879,5.39702441,2055.7,2053.2,0.00464588]
[1770481415177,5.54037473,2055.9,2053.2,0.00464588]
[1770481415574,5.54037473,2055.6,2053.2,0.00464588]
[1770481415877,0.24347,2055.5,2053.2,0.00464588]
[1770481416277,5.64404475,2055.4,2053.2,0.00464588]
[1770481417381,10.22736751,2055.7,2053.2,0.00464588]
[1770481417585,4.874,2055.7,2053.2,0.00464588]
[1770481417979,4.874,2055.5,2053.2,0.00464588]
[1770481418387,4.874,2055.3,2053.2,0.00464588]
[1770481418889,0.02493236,2055.2,2053.2,0.00464588]
[1770481420082,4.874,2055.6,2053.3,5.23979885]
[1770481420278,2.89418562,2056.0,2053.3,5.23979885]
[1770481420490,5.42265694,2055.5,2053.2,0.00464588]
[1770481420684,5.42265694,2055.8,2053.3,8.1187994]
[1770481420891,5.42265694,2056.0,2053.6,0.24368]
[1770481421193,5.45408284,2056.1,2053.7,5.86489947]
[1770481421490,0.00353993,2056.3,2053.8,7.23238032]
[1770481421684,5.45408284,2056.0,2053.5,5.62122947]
[1770481421884,5.45408284,2056.0,2053.5,0.24369]
[1770481422086,4.874,2056.0,2053.5,3.12269055]
[1770481422285,4.874,2056.0,2053.6,5.62123756]
[1770481422485,10.06081376,2055.9,2053.5,0.24369]
[1770481422791,4.874,2055.9,2053.5,0.24369]
[1770481422991,5.18681376,2056.1,2053.5,0.24369]
[1770481423191,5.44759058,2055.8,2053.5,0.24369]
[1770481423392,5.44759058,2056.0,2053.8,2.87900055]
[1770481423592,5.44759058,2056.1,2053.8,7.47604032]
[1770481423794,5.44759058,2056.2,2053.9,5.64802313]
[1770481423994,0.00353993,2056.3,2053.9,8.77067368]
[1770481424290,0.00353993,2056.3,2054.0,2.87900055]
[1770481424591,5.34278073,2056.2,2054.0,3.12263055]
[1770481424789,0.00353993,2056.3,2054.0,3.12263055]
[1770481424989,0.00353993,2056.3,2055.2,25.09396519]
[1770481425190,0.00353993,2056.3,2055.2,25.09935018]
[1770481425387,0.00353993,2056.3,2055.2,0.00538499]
[1770481428095,5.38660499,2056.2,2055.2,0.00538499]
[1770481428399,5.38660499,2056.2,2053.6,2.87900055]
[1770481428693,5.38660499,2056.2,2053.7,2.87900055]
[1770481428895,5.38660499,2056.2,2053.7,8.23523554]
[1770481429098,5.38660499,2056.2,2053.8,2.87900055]
[1770481429288,5.38660499,2056.2,2053.8,8.11011694]
[1770481429488,5.38660499,2056.2,2053.8,8.35377694]
[1770481429692,5.38660499,2056.2,2053.9,3.12265055]
[1770481430002,5.38660499,2056.2,2054.1,0.24362]
[1770481430203,0.00353993,2056.3,2054.1,3.12262055]
[1770481430501,51.50064216,2057.9,2057.1,0.24326]
[1770481430702,6.76328206,2060.0,2057.1,0.24326]
[1770481430997,3.93271466,2057.8,2056.7,2.85192523]
[1770481431203,0.24298,2059.6,2056.5,2.85192523]
[1770481431204,0.24299,2059.5,2056.5,2.85192523]
[1770481431397,51.74885986,2059.5,2056.7,2.85192523]
[1770481431600,56.45410303,2059.5,2056.8,7.86270613]
[1770481431800,56.45410303,2059.5,2057.1,2.85192523]
[1770481431801,56.21111303,2059.5,2057.1,2.85192523]
[1770481432004,56.21111303,2059.5,2057.9,2.85192523]
[1770481432197,56.21111303,2059.5,2057.6,2.85192523]
[1770481432802,51.50586986,2059.5,2057.9,2.85192523]
[1770481432996,0.0052377,2059.5,2058.1,2.85192523]
[1770481433196,19.68872611,2062.5,2058.2,7.13080162]
[1770481433197,0.24275,2061.5,2058.2,7.13080162]
[1770481433399,51.50063216,2061.4,2058.9,2.85192523]
[1770481433609,5.5572958,2061.5,2058.8,2.85192523]
[1770481433904,51.50063216,2061.4,2058.7,2.85192523]
[1770481434201,51.50063216,2061.4,2058.8,13.18072799]
[1770481434202,5.33483372,2061.4,2058.8,13.18072799]
[1770481434400,51.50063216,2061.3,2058.9,8.03403594]
[1770481434804,5.33483372,2061.2,2059.0,5.18211071]
[1770481435000,5.33483372,2061.2,2058.8,2.85192523]
[1770481435302,51.50063216,2061.1,2058.5,2.85192523]
[1770481435500,51.50063216,2061.1,2058.4,2.85192523]
[1770481435701,5.37401816,2061.0,2058.2,8.37373457]
[1770481435997,5.37401816,2061.0,2058.3,5.16037529]
[1770481436203,51.50063216,2060.9,2058.1,2.85782219]
[1770481436703,5.47352328,2060.8,2058.1,2.85782219]
[1770481436910,5.47352328,2060.8,2058.1,8.01135005]
[1770481437113,51.50063216,2060.7,2058.1,0.00589696]
[1770481437610,5.51024606,2060.6,2058.1,0.00589696]
[1770481437809,51.50063216,2060.5,2058.1,0.00589696]
[1770481438207,5.49295578,2060.4,2058.1,0.00589696]
[1770481438709,51.50063216,2060.3,2058.1,0.00589696]
[1770481439015,5.49295578,2060.2,2058.1,0.00589696]
[1770481439505,51.50063216,2060.1,2058.1,0.00589696]
[1770481439906,5.57817183,2060.0,2058.3,25.09396519]
[1770481440310,51.50063216,2059.9,2058.1,0.00589696]
[1770481440612,5.30838946,2059.8,2058.1,0.00589696]
[1770481441109,51.50063216,2059.7,2058.1,0.00589696]
[1770481441806,5.60682824,2059.6,2058.1,0.00589696]
[1770481442012,5.60682824,2059.6,2057.5,2.85192523]
[1770481442013,51.50063216,2059.6,2057.4,0.24323]
[1770481442209,51.50063216,2059.6,2057.2,2.85192523]
[1770481442413,56.73515502,2059.6,2057.2,2.85192523]
[1770481442603,51.50063216,2059.6,2057.5,5.09623331]
[1770481442809,5.23452286,2059.5,2057.3,7.94815854]
[1770481443009,5.23452286,2059.5,2057.3,2.85743354]
[1770481443208,51.50063216,2059.4,2057.3,0.00550831]
[1770481443509,5.14695689,2059.3,2057.3,0.00550831]
[1770481444005,51.50063216,2059.2,2057.3,0.00550831]
[1770481444514,5.22657658,2059.1,2057.3,0.00550831]
[1770481444913,51.50063216,2059.0,2057.3,0.00550831]
[1770481445413,10.11097708,2058.9,2057.3,0.00550831]
[1770481445612,4.874,2058.7,2056.3,0.24336]
[1770481446013,4.874,2058.5,2056.2,2.85192523]
[1770481446208,4.874,2058.5,2056.1,2.85192523]
[1770481446418,51.74573005,2058.4,2056.1,2.85192523]
[1770481446610,51.75074573,2058.4,2056.1,2.85686791]
[1770481447116,56.62474573,2058.4,2056.1,0.00494268]
[1770481447311,51.75074573,2058.4,2056.1,0.00494268]
[1770481447513,51.75074573,2058.4,2056.2,2.85192523]
[1770481447710,51.50564784,2058.4,2056.4,2.85192523]
[1770481448019,51.50564784,2058.4,2056.8,2.85192523]
[1770481448212,51.1895546,2058.4,2056.8,2.85192523]
[1770481448412,51.1895546,2058.4,2056.7,2.85192523]
[1770481448813,51.1895546,2058.4,2056.8,2.85192523]
[1770481449120,0.00501568,2058.4,2056.9,2.85192523]
[1770481449410,51.17665077,2058.3,2056.9,2.85192523]
[1770481450116,51.17665077,2058.3,2057.0,2.85192523]
[1770481450312,51.17665077,2058.2,2057.0,2.85192523]
[1770481450506,50.54448333,2058.2,2057.0,2.85192523]
[1770481450707,50.54448333,2058.2,2057.0,7.13080162]
[1770481450906,50.54448333,2058.2,2057.2,2.85192523]
[1770481451613,0.00501568,2058.4,2057.2,2.85192523]
[1770481451810,50.54949901,2058.4,2057.3,2.85192523]
[1770481452215,50.54949901,2058.4,2057.5,2.85192523]
[1770481453510,50.54949901,2058.4,2057.2,7.13080162]
[1770481453712,50.54949901,2058.4,2057.1,2.85192523]
[1770481453907,5.34237955,2058.3,2056.9,2.85192523]
[1770481454108,5.34237955,2058.3,2057.0,2.85192523]
[1770481454417,5.34237955,2058.3,2057.1,2.85192523]
[1770481454418,50.54448333,2058.2,2057.1,2.85192523]
[1770481454814,5.3446038,2058.1,2056.9,7.13080162]
[1770481455018,5.3446038,2058.1,2056.5,2.85192523]
[1770481455220,50.54448333,2058.0,2056.6,2.85192523]
[1770481456025,5.53640433,2057.9,2056.6,2.85192523]
[1770481456320,5.53640433,2057.9,2056.7,2.85192523]
[1770481456516,50.54448333,2057.8,2056.6,0.93519953]
[1770481456726,5.53640433,2057.9,2056.1,8.60936679]
[1770481456727,4.874,2057.7,2056.1,0.00494268]
[1770481456922,10.23910252,2057.7,2056.1,0.00494268]
[1770481457225,4.874,2057.7,2056.1,0.00494268]
[1770481457426,50.91327772,2057.6,2056.1,0.00494268]
[1770481457625,45.33040741,2057.5,2056.1,0.00494268]
[1770481458123,5.58287031,2057.4,2055.6,13.11389429]
[1770481458526,45.32546473,2057.3,2055.6,13.11389429]
[1770481458836,50.68166291,2057.5,2055.6,13.11389429]
[1770481459124,45.32546473,2057.5,2055.7,12.33245529]
[1770481459325,5.34708146,2057.4,2055.8,5.20099464]
[1770481459524,5.34708146,2057.4,2055.7,12.33245529]
[1770481459718,45.32546473,2057.3,2055.8,5.20099464]
[1770481459919,45.32546473,2057.3,2055.6,13.11800807]
[1770481460120,5.34708146,2057.2,2055.7,5.20862679]
[1770481460517,45.32546473,2057.1,2055.7,5.20862679]
[1770481461030,0.16240729,2057.0,2055.7,5.20862679]
[1770481461323,0.16240729,2057.0,2055.6,13.11800807]
[1770481461528,45.32546473,2056.9,2055.7,5.21231623]
[1770481461725,45.33071449,2056.9,2055.7,5.21231623]
[1770481462130,5.3532877,2056.8,2055.7,5.21231623]
[1770481462524,45.33071449,2056.9,2055.7,5.21231623]
[1770481462828,45.32546473,2056.7,2055.7,5.21231623]
[1770481463932,45.32546473,2056.7,2055.7,12.34377688]
[1770481464135,45.32546473,2056.7,2055.8,12.34377688]
[1770481464332,45.32546473,2056.7,2055.9,5.21231623]
[1770481464533,45.32546473,2056.7,2056.0,5.21231623]
[1770481464733,45.32546473,2056.7,2055.6,20.24946872]
[1770481464934,45.32546473,2056.7,2055.7,12.33684128]
[1770481465235,4.874,2058.7,2055.8,5.20538063]
[1770481465436,50.19946473,2059.0,2056.1,7.13146065]
[1770481465633,45.32546473,2058.6,2056.2,5.20538063]
[1770481465835,45.32546473,2058.9,2056.3,12.33684128]
[1770481466030,45.32546473,2058.9,2056.0,8.60442411]
[1770481466031,5.307353,2058.5,2056.5,7.13146065]
[1770481466234,5.31288419,2058.5,2056.6,5.20538063]
[1770481466429,45.32546473,2058.4,2056.6,5.20538063]
[1770481466630,50.74171457,2058.4,2056.7,5.20538063]
[1770481467137,50.74171457,2058.4,2056.8,5.20538063]
[1770481467335,50.74171457,2058.4,2056.9,5.20538063]
[1770481467532,50.74171457,2058.4,2057.0,5.20538063]
[1770481467737,50.74171457,2058.4,2057.1,5.20538063]
[1770481467938,50.74171457,2058.4,2057.2,5.20538063]
[1770481468238,50.74171457,2058.4,2057.3,5.20538063]
[1770481468432,50.74171457,2058.4,2057.4,5.21511916]
[1770481468635,45.32546473,2058.4,2057.1,0.00432222]
[1770481468832,5.26365989,2058.3,2057.1,5.21936547]
[1770481469037,5.26365989,2058.3,2057.2,5.21504325]
[1770481469338,45.32546473,2058.2,2057.1,0.00432222]
[1770481469540,45.32546473,2058.4,2057.1,0.00432222]
[1770481469838,5.35065376,2058.3,2057.1,0.00432222]
[1770481470034,45.32546473,2058.4,2057.2,25.09396519]
[1770481470235,45.32546473,2058.4,2057.3,5.15950121]
[1770481470433,5.31720062,2058.2,2056.5,10.41427211]
[1770481470737,38.34738127,2058.3,2056.4,8.60442411]
[1770481470934,33.03018065,2058.3,2056.4,8.60442411]
[1770481471136,5.31720062,2058.2,2056.5,8.60442411]
[1770481471438,5.31720062,2058.2,2056.5,0.00513718]
[1770481471638,33.03018065,2058.1,2056.5,0.00513718]
[1770481471836,33.03018065,2058.1,2056.6,8.60442411]
[1770481472138,33.03018065,2058.1,2056.9,8.60442411]
[1770481472837,33.03018065,2058.1,2056.8,8.60442411]
[1770481473137,5.33892024,2058.0,2056.5,0.00513718]
[1770481474338,33.03018065,2057.9,2056.5,0.00513718]
[1770481474734,5.1527752,2057.8,2056.5,0.00513718]
[1770481475438,33.03018065,2057.7,2056.5,0.00513718]
[1770481475940,5.16454028,2057.6,2056.5,0.00513718]
[1770481476435,5.16454028,2057.6,2055.6,10.41427211]
[1770481476638,33.02504347,2057.5,2055.9,5.76693908]
[1770481476841,33.02504347,2057.5,2056.2,5.76693908]
[1770481477040,33.02504347,2057.5,2056.3,5.76693908]
[1770481477237,33.02504347,2057.5,2056.5,5.76693908]
[1770481477437,33.02504347,2057.5,2056.6,5.76693908]
[1770481478039,33.02504347,2057.5,2056.7,5.76693908]
[1770481478241,32.08629323,2057.5,2057.0,5.76693908]
[1770481478440,0.00553119,2058.5,2057.0,5.76693908]
[1770481478642,32.08629323,2058.4,2057.0,5.76693908]
[1770481478832,37.228039,2058.4,2057.0,5.76693908]
[1770481479038,32.08629323,2058.3,2057.2,5.76693908]
[1770481480137,5.48560347,2058.2,2057.2,5.76693908]
[1770481480338,32.08629323,2058.1,2057.2,5.76693908]
[1770481480541,32.08629323,2058.4,2057.2,5.76693908]
[1770481480832,37.66303353,2058.4,2057.2,5.76693908]
[1770481481043,32.08629323,2058.4,2057.2,5.76693908]
[1770481481244,5.22831229,2058.3,2057.2,5.76693908]
[1770481481543,5.22831229,2058.3,2057.0,5.76693908]
[1770481481744,5.22831229,2058.3,2056.8,5.76693908]
[1770481481745,32.08629323,2058.2,2056.8,5.76693908]
[1770481482246,5.22831229,2058.1,2056.7,5.76693908]
[1770481482743,32.08629323,2058.0,2056.8,4.99173108]
[1770481483245,5.3896538,2057.9,2056.9,4.99173108]
[1770481483645,32.08629323,2057.8,2056.9,4.99173108]
[1770481484039,32.08629323,2057.8,2057.0,10.75867016]
[1770481484244,32.08629323,2057.8,2057.1,4.99173108]
[1770481484439,32.08629323,2057.8,2056.9,5.76693908]
[1770481484646,32.08629323,2057.8,2057.0,10.76055308]
[1770481484836,32.08629323,2057.8,2057.1,4.993614]
[1770481485041,32.08629323,2057.8,2056.9,5.76693908]
[1770481485240,32.08629323,2057.8,2057.2,5.76693908]
[1770481485439,32.08629323,2057.8,2057.3,10.76061922]
[1770481485648,32.08629323,2057.8,2057.4,4.99368014]
[1770481485946,32.08629323,2057.8,2057.5,4.99368014]
[1770481486147,32.08629323,2057.8,2057.1,5.76693908]
[1770481486349,32.08629323,2057.8,2057.0,4.99337715]
[1770481486548,32.08629323,2057.8,2057.1,4.99425038]
[1770481486738,32.08629323,2057.8,2057.0,4.32820094]
[1770481486941,32.08629323,2057.8,2056.9,4.32820094]
[1770481487143,32.08629323,2057.8,2056.8,10.09514002]
[1770481487346,32.08629323,2057.8,2056.8,15.09033793]
[1770481487548,5.4429257,2057.7,2056.9,4.99519791]
[1770481487747,32.08629323,2057.8,2056.8,4.32820094]
[1770481488046,32.08629323,2057.8,2056.8,9.3249155]
[1770481488639,5.58325271,2057.7,2056.8,9.3249155]
[1770481489248,32.08629323,2057.6,2056.8,9.3249155]
[1770481489449,32.08629323,2057.6,2056.1,10.41427211]
[1770481489450,36.95548206,2057.6,2056.2,10.09514002]
[1770481489650,5.12990738,2057.5,2056.0,10.09514002]
[1770481489947,5.12990738,2057.5,2055.8,15.80464405]
[1770481489948,4.874,2057.4,2055.8,4.32820094]
[1770481490146,36.95548206,2057.4,2055.8,9.3344718]
[1770481490347,5.42169588,2057.3,2055.8,9.3344718]
[1770481490547,5.42169588,2057.3,2056.0,4.32820094]
[1770481490746,32.08148206,2057.2,2056.1,5.00627086]
[1770481490946,32.08148206,2057.2,2056.2,9.3344718]
[1770481491151,32.08148206,2057.2,2056.4,4.32820094]
[1770481491348,32.08148206,2057.2,2056.4,9.3344718]
[1770481491554,32.08148206,2057.2,2056.5,9.3344718]
[1770481491750,32.08148206,2057.2,2056.3,4.32820094]
[1770481491950,32.08148206,2057.2,2056.4,4.96814952]
[1770481492149,32.08148206,2057.2,2056.4,9.29635046]
[1770481492351,32.08148206,2057.2,2056.5,4.96814952]
[1770481493045,32.08148206,2057.2,2056.4,9.29635046]
[1770481493243,32.08148206,2057.2,2056.5,4.96814952]
[1770481493456,32.08148206,2057.2,2056.6,4.96814952]
[1770481493765,32.08148206,2057.2,2056.4,4.32820094]
[1770481493963,32.08148206,2057.2,2056.4,4.97134958]
[1770481494258,5.30146266,2057.1,2056.1,4.32820094]
[1770481494463,5.30146266,2057.1,2056.1,4.97293592]
[1770481494663,32.08148206,2057.0,2056.1,4.97293592]
[1770481494863,32.08731541,2057.0,2056.0,4.32820094]
[1770481495064,5.48676004,2056.9,2056.1,4.9739018]
[1770481495260,5.48676004,2056.9,2055.9,4.32820094]
[1770481495463,32.08148206,2056.8,2056.0,4.97298916]
[1770481495661,32.08148206,2056.8,2056.1,9.3011901]
[1770481495860,32.08148206,2056.8,2056.2,9.3011901]
[1770481496060,32.08148206,2056.8,2056.3,4.97298916]
[1770481496260,32.08148206,2056.8,2056.2,4.32820094]
[1770481496559,32.08148206,2056.8,2055.9,4.32820094]
[1770481496764,32.08148206,2056.8,2055.9,9.29944496]
[1770481496954,32.08148206,2056.8,2056.0,9.29944496]
[1770481497157,32.08148206,2056.8,2056.1,4.96985018]
[1770481497361,32.08148206,2056.8,2056.2,4.96911587]